Cogmind - Beta 15 @@@ ROGUE MODE // 2025.09.24 @ 09:59:16 Player: Crusang Result: Destroyed by D-53 Grenadier with Mini Grenade Launcher Performance ------------- Evolutions (0) 0 Regions Visited (2) 400 Robots Destroyed (5) 25 Value Destroyed (56) 56 Prototype IDs (0) 0 Alien Tech Used (0) 0 Bonus (0) 0 TOTAL SCORE: 481 Bonus ------- None Cogmind --------- Core Integrity 0/250 Matter 254/300 Energy 99/100 System Corruption 0% Temperature Cool (0) Movement Core (50) Location -10/Mines Parts ------- > --- POWER (1) -------- (None) > --- PROPULSION (2) --- (None) > --- UTILITY (2) ------ Signal Interpreter > --- WEAPON (2) ------- (None) > --- INVENTORY (5) ---- Aluminum Leg Aluminum Leg Small Storage Unit Assault Rifle Peak State ------------ > --- POWER ------------ Ion Engine > --- PROPULSION ------- Compact Wheel Compact Wheel > --- UTILITY ---------- Small Storage Unit Signal Interpreter > --- WEAPON ----------- Assault Rifle Light Assault Rifle > --- INVENTORY -------- Ion Engine Aluminum Leg Aluminum Leg [Rating: 7] Favorites ----------- Power Ion Engine Engine Ion Engine Propulsion Compact Wheel Wheel Compact Wheel Flight Unit Flight Unit Utility Small Storage Unit Storage Small Storage Unit Processor Signal Interpreter Weapon Assault Rifle Ballistic Gun Assault Rifle Build | -11 -10 -10 ------- Run | Yrd Mat Min Slots Evolved . | . . . Power . | . . . Propulsion . | . . . Utility . | . . . Weapon . | . . . Parts Attached 9 | 6 2 1 Power 2 | 1 1 . Engine 2 | 1 1 . Core . | . . . Reactor . | . . . Propulsion 3 | 2 . 1 Treads . | . . . Leg . | . . . Wheel 2 | 2 . . Hover . | . . . Flight 1 | . . 1 Utility 2 | 1 1 . Device . | . . . Storage 1 | 1 . . Processor 1 | . 1 . Hackware . | . . . Protection . | . . . Artifact . | . . . Weapon 2 | 2 . . Energy Gun . | . . . Energy Cannon . | . . . Ballistic Gun 2 | 2 . . Ballistic Cannon . | . . . Launcher . | . . . Special Weapon . | . . . Impact Weapon . | . . . Slashing Weapon . | . . . Piercing Weapon . | . . . Special Melee Weapon . | . . . Unidentified Prototypes . | . . . Parts Lost 4 | . 1 3 Power 2 | . 1 1 Propulsion 1 | . . 1 Utility . | . . . Weapon 1 | . . 1 Highest Loss Streak 3 | . 1 3 To Critical Strikes . | . . . Average Backups 2 | 1 2 2 Power . | . . . Propulsion 1 | . 2 2 Utility . | . . . Weapon . | . . . Tool/Special . | . . . Unused Backups 2 | . . 2 Power . | . . . Propulsion 2 | . . 2 Utility . | . . . Weapon . | . . . Tool/Special . | . . . Average Slot Usage (%) 95 | . 95 96 Engine 13 | . 13 14 Wheel 26 | . 27 23 Storage 14 | . 14 14 Processor 12 | . 11 14 Ballistic Gun 28 | . 28 28 Peak Build Rating 7 | 6 7 7 Average Rating 6 | 4 6 6 On Entrance 4 | . 6 7 Naked Turns . | . . . Heaviest Build 13 | 13 13 13 Greatest Support 32 | 32 32 32 Greatest Overweight (x) 3 | 3 . 3 Average Overweight (x) . | . . . Largest Inventory Capacity 8 | 8 8 8 Average Capacity 7 | 7 8 7 Most Carried 4 | 3 3 4 Average Carried 2 | 1 2 2 Final Capacity 8 | 8 8 5 Final Carried 4 | 3 2 4 Class Distribution -------------------- 100% | Mutant Dominant Class ---------------- Mutant | -10/Materials Mutant | -10/Mines Resources | -11 -10 -10 ----------- Run | Yrd Mat Min Matter Collected 283 | 255 15 13 Remotely . | . . . Salvage Created 80 | . 15 65 Parts 9 | . 1 8 Haulers Intercepted . | . . . Recyclers Shooed . | . . . Parts Field Recycled . | . . . Retrieved Matter . | . . . Parts Self-Destructed . | . . . Prevented . | . . . Kills | -11 -10 -10 ------- Run | Yrd Mat Min Combat Hostiles Destroyed 4 | . . 4 Guns 4 | . . 4 Classes Destroyed 2 | . 1 1 Watcher 1 | . 1 . Swarmer 4 | . . 4 Best Kill Streak 3 | . 1 3 Combat Bots Only 3 | . . 3 Max Kills in Single Turn 1 | . 1 1 Gunslinging . | . . . Exploded . | . . . Melee . | . . . Uniques/NPCs Destroyed . | . . . Combat | -11 -10 -10 -------- Run | Yrd Mat Min Hostile Shots Fired 33 | . . 33 Missed 7 | . . 7 Hits 26 | . . 26 Projectile 26 | . . 26 AOE 9 | . . 9 Damage Taken 578 | . 65 513 Core 267 | . 30 237 Absorbed by Shields . | . . . Core Remaining (%) 100 | 100 . . Volleys Fired 11 | . 1 10 Largest 2 | . 2 2 Hottest 40 | . 40 40 Shots Fired 22 | . 2 20 Gun 22 | . 2 20 Cannon . | . . . Launcher . | . . . Special . | . . . Kinetic 22 | . 2 20 Thermal . | . . . Explosive . | . . . Electromagnetic . | . . . Robot Hit Streak 3 | . 1 3 Robot Miss Streak 3 | . . 3 Penetration Max . | . . . Secondary Targets 1 | . . 1 Max Gunslinging Chain 1 | . . 1 Shots Hit Robots 9 | . 1 8 Core Hits 6 | . 1 5 Critical Kills . | . . . Critical Parts Destroyed . | . . . Critical Strikes . | . . . Melee Attacks . | . . . Impact . | . . . Slashing . | . . . Piercing . | . . . Sneak Attacks . | . . . Combat Hostiles . | . . . Follow-up Attacks . | . . . Damage Inflicted 93 | . 12 81 Guns 93 | . 12 81 Cannons . | . . . Explosions . | . . . Melee . | . . . Ramming . | . . . Kinetic 93 | . 12 81 Thermal . | . . . Explosive . | . . . Electromagnetic . | . . . Impact . | . . . Slashing . | . . . Piercing . | . . . Highest Corruption . | . . . Average Corruption . | . . . Corruption Purged . | . . . Corruption Blocked . | . . . Overload Shots . | . . . Overflow Damage . | . . . Projectiles . | . . . Explosions . | . . . Melee . | . . . Knockbacks . | . . . Impact . | . . . Kinetic . | . . . Secondary . | . . . Self-Inflicted Damage . | . . . Shots . | . . . Rammed . | . . . Targets Rammed . | . . . Kicked . | . . . Crushed . | . . . Highest Temperature . | . . . Average Temperature . | . . . Received Heat Transfer . | . . . Siege Activations . | . . . Martial Activations . | . . . Shielding Activations . | . . . Robots Disrupted . | . . . Combat Hostiles . | . . . Robots Corrupted . | . . . Combat Hostiles . | . . . Parts Fried . | . . . Impact Corruptions . | . . . Robots Melted . | . . . Combat Hostiles . | . . . Parts Melted . | . . . Heat Transferred . | . . . Parts Sabotaged . | . . . Parts Stolen . | . . . Parts Stripped . | . . . Power Chain Reactions . | . . . Alert | -11 -10 -10 ------- Run | Yrd Mat Min Maximum Alert Level . | . . . Low Security (%) 100 | 100 100 100 Level 1 . | . . . Level 2 . | . . . Level 3 . | . . . Level 4 . | . . . Level 5 . | . . . High Security . | . . . Max Security . | . . . Peak Influence 60 | . 21 60 Initial . | . . . Average 11 | . 3 35 Influence Increases 118 | . 28 90 Destroy 0b10 Robot/C 80 | . . 80 Destroy 0b10 Robot/NC 5 | . 5 . Destroy Leader 12 | . 2 10 Successful Hack 21 | . 21 . Influence Decreases 88 | . 28 60 Time Decay 58 | . 28 30 Lost Part 30 | . . 30 Squads Dispatched . | . . . Investigation . | . . . Extermination . | . . . Reinforcement . | . . . Assault . | . . . Garrison . | . . . Intercept . | . . . Searches Triggered . | . . . Construction Impeded . | . . . Haulers Reinforced . | . . . Active Scanning Responses . | . . . Cargo Convoy Interrupts . | . . . Stealth | -11 -10 -10 --------- Run | Yrd Mat Min Distress Signals 1 | . . 1 Communications Jammed . | . . . Distress Signals . | . . . Times Spotted 9 | . 1 8 Peak Tracking Total 4 | . 1 4 Tactical Retreats . | . . . Traps | -11 -10 -10 ------- Run | Yrd Mat Min Traps Triggered 2 | . 2 . Indirectly . | . . . Trap Hack Attempts . | . . . Triggered . | . . . Disarmed . | . . . Reprogrammed . | . . . Reused . | . . . Traps Extracted . | . . . Installed . | . . . Triggered . | . . . Machines | -11 -10 -10 ---------- Run | Yrd Mat Min Machines Disabled . | . . . Max in Single Turn . | . . . Machines Repaired . | . . . Machines Dismantled . | . . . Machines Sabotaged . | . . . Overloaded Fab Kills . | . . . Hacking | -11 -10 -10 --------- Run | Yrd Mat Min Machines Accessed 3 | . 3 . Terminals 3 | . 3 . Fabricators . | . . . Repair Stations . | . . . Recycling Units . | . . . Scanalyzers . | . . . Garrison Access . | . . . Total Hacks 9 | . 9 . Successful 5 | . 5 . Failed 4 | . 4 . Catastrophic 1 | . 1 . Database Lockouts . | . . . Manual 5 | . 5 . Terminals 9 | . 9 . Fabricators . | . . . Repair Stations . | . . . Recycling Units . | . . . Scanalyzers . | . . . Garrison Access . | . . . Terminal Hacks 3 | . 3 . Record 3 | . 3 . Fabricator Hacks . | . . . Repair Station Hacks . | . . . Recycling Unit Hacks . | . . . Scanalyzer . | . . . Garrison Access Hacks . | . . . Unauthorized Hacks 2 | . 2 . Terminals 2 | . 2 . Assimilate 2 | . 2 . Fabricators . | . . . Repair Stations . | . . . Recycling Units . | . . . Scanalyzers . | . . . Garrison Access . | . . . Data Cores Recovered . | . . . Used . | . . . Hacking Detections 2 | . 2 . Full Trace Events . | . . . Feedback Events . | . . . Feedback Blocked . | . . . Robot Schematics Acquired . | . . . Robots Built . | . . . Authchips . | . . . Time . | . . . Total Robot Build Rating . | . . . Part Schematics Acquired . | . . . Parts Built . | . . . Authchips . | . . . Time . | . . . Total Part Build Rating . | . . . Parts Repaired . | . . . Time . | . . . Parts Recycled . | . . . Recycled Matter . | . . . Retrieved Matter . | . . . Retrieved Components . | . . . Parts Scanalyzed . | . . . Part Schematics Acquired . | . . . Parts Damaged . | . . . Bothacking | -11 -10 -10 ------------ Run | Yrd Mat Min Used RIF Installer . | . . . Robots Hacked . | . . . Non-combat . | . . . Combat . | . . . Robot Hacks Applied . | . . . Relay Couplers Released . | . . . Fabnet Peak Effective % . | . . . Robots Rewired . | . . . Allies Hacked . | . . . Hacks Repelled . | . . . Allies | -11 -10 -10 -------- Run | Yrd Mat Min Total Allies . | . . . Largest Group . | . . . Highest-Rated Group . | . . . Highest-Rated Ally . | . . . Total Orders . | . . . Ally Attacks . | . . . Total Damage . | . . . Kills . | . . . Allies Corrupted . | . . . Allies Melted . | . . . Intel | -11 -10 -10 ------- Run | Yrd Mat Min Active Infowar (turns) . | . . . Robot Analysis Total . | . . . Derelict Logs Recovered 1 | . . 1 Drone Launches . | . . . Drone Recoveries . | . . . Exploration | -11 -10 -10 ------------- Run | Yrd Mat Min Turns Passed 305 | 46 180 79 Spaces Moved 241 | 35 159 47 Core 8 | 4 . 4 Treads . | . . . Legs . | . . . Wheels 232 | 31 159 42 Hover . | . . . Flight 1 | . . 1 Fastest Speed 50 | 50 100 50 Average Speed 100 | 100 100 100 Slowest Speed 280 | 200 100 280 Overloaded Moves . | . . . Propulsion Burnouts . | . . . Robots Hopped . | . . . Potential Cave-ins . | . . . Cave-ins Triggered . | . . . Exploration Rate (%) 16 | 5 32 11 Regions Visited 2 Branch Regions 1 Pre-discovered Areas . | . . . Known Exits Taken 1 | . 1 . Unknown Exits Taken 1 | 1 . . Scrap Searched . | . . . Spaces Dug . | . . . Terrain Destroyed . | . . . Melee . | . . . Projectile . | . . . AOE . | . . . Terrain Rammed . | . . . Walls Destroyed . | . . . Machines Disabled . | . . . Actions | -11 -10 -10 --------- Run | Yrd Mat Min Total 282 | 43 177 62 Wait 15 | . 15 . Move 239 | 34 158 47 Hop . | . . . Pick Up 3 | 3 . . Fast Attach 9 | 6 2 1 Attach 1 | . 1 . Detach 2 | . . 2 Swap . | . . . Drop 2 | . . 2 Fire 11 | . 1 10 Melee . | . . . Ram . | . . . Kick . | . . . Crush . | . . . Escape Stasis . | . . . Rewire . | . . . Trap . | . . . Miscellaneous . | . . . Route ------- -11/Scrapyard -10/Materials -10/Mines History --------- Turn | Location | Event 20 | -11/Scrapyard | Discovered new exit (range 15) 47 | -11/Scrapyard | Entered Materials 184 | -10/Materials | Discovered new exit (range 8) 226 | -10/Materials | Identified exit to Mines 227 | -10/Materials | Entered Mines 232 | -10/Mines | Met a Derelict bent on vengeance 266 | -10/Mines | Assembled infested the area 303 | -10/Mines | Core integrity fell below 50% 306 | -10/Mines | Destroyed by D-53 Grenadier with Mini Grenade Launcher Last Messages --------------- Data stored: Storage entrances (x1). 00238_ S-10 Pest destroyed. 00250_ Switching to secondary target: S-10 Pest. 00252_ S-10 Pest destroyed. 00257_ Acquired 13 matter. 00266_ ALERT: Infestation in the mines, dispatching Demolisher response squad. 00276_ K-01 Serf collects debris. 00282_ C-30 ARC bursts open, deploying its payload. 00282_ D-53 Grenadier unfolds itself. 00282_ Com. Wheel destroyed. 00282_ S-10 Pest destroyed. 00284_ K-01 Serf collects debris. 00291_ S-10 Pest destroyed. 00297_ Acquired Flight Unit. 00299_ Dropped Com. Wheel. 00300_ Lgt. Assault Rifle destroyed. 00302_ The unstable cave ceiling collapses. 00303_ Dropped Flight Unit. 00304_ Ion Engine destroyed. Map ----- +----------------------------------------------------+ | ???????????????????????????###???????????????????? | | ???????????????????????????# ???????????????????? | | ???????????????????????????? ??????????????????? | | ???????????????????????????? ??????????????????? | | ????????????????????????????? ?#???????????????? | | ?????????????????????????????? ? ##?????????????? | | ??????????????????????????????? #?????????????? | | ??????????????????????????????? ?????????????? | | ???????????????????????????????? ?????????????? | | ????????????????????????????????? #?????????????? | | ?????????????????????????????????# #?????????????? | | ?????????????????????????????????# ####??????????? | | ?????????????????????????????????# [%#??????????? | | ?????????????????????????????????# ##%#??????????? | | ?????????????????????????????????# ##[#??????????? | | ?????????????????????????????????# ## #??????????? | | ?????????????????????????????????# ##=###????????? | | ????????????????????????????????## ## = #????????? | | ???????????????????????????????## * #????????? | | ???????????????????????????????# #????????? | | ???????????????????#######?????# ##????????? | | ??????????????????## # ##????# ##?????????? | | ?????????????????## ######" ##??????????? | | ????????????????## # ## k""" #???????????? | | ????????????????# d """ #???????????? | | ????????????????# @ """ #???????????? | | ????????????????# d ## #??????????? | | ????????????????# ### #??????????? | | ????????????????## [ #?# #??????????? | | ?????????????????# #####? ##??????????? | | ?????????????????### ##????? ####???????????? | | ???????????????????######?????? ##??????????????? | | ??????????????????????????????? ##???????????????? | | ??????????????????????????????? ?????????????????? | | ??????????????????????????????? ?????????????????? | | ??????????????????????????????? ?????????????????? | | ??????????????????????????????? ?????????????????? | | ??????????????????????????????? ?????????????????? | | ?????????????????????????????????????????????????? | | ?????????????????????????????????????????????????? | | ?????????????????????????????????????????????????? | | ?????????????????????????????????????????????????? | | ?????????????????????????????????????????????????? | | ?????????????????????????????????????????????????? | | ?????????????????????????????????????????????????? | | ?????????????????????????????????????????????????? | | ?????????????????????????????????????????????????? | | ?????????????????????????????????????????????????? | | ?????????????????????????????????????????????????? | | ?????????????????????????????????????????????????? | +----------------------------------------------------+ Best States ------------- Heat Dissipation 25 Energy Generation 10 Energy Capacity 250 Matter Stores 295 Matter Capacity 300 Sight Range 16 Terrain Scan Density 10 Evasion (%) 40 Item Schematics ----------------- None Robot Schematics ------------------ None Fabricated ------------ Nothing Repaired ---------- Nothing Alien Tech Used ----------------- None Achievements -------------- True Hacker Challenges ------------ None Game ------ Seed DefenseRemoteSpear Manual? 0 Play Time 00:06:45 Cumulative 7.2 hours Start 2025.09.24 @ 09:53:42 End 2025.09.24 @ 09:59:16 Sessions 1 Manual Loads 0 Difficulty Rogue Special Mode None Game No. 12 Rogue 5 Adventurer 6 Explorer 1 Win Type - Total 1 Types 1/0/0/0/0/0/0/0/0/0 Lore% 9 Gallery% 22 Achievement% 23 Wizard Run 0 Options --------- Layout 0 ASCII 0 Keyboard 0 Movement Numpad Keybinds 0 Fullscreen 2 Font 24/Smallcaps Map View 38x25 Zoom Use 99% Tactical HUD 1 Map Filters NONE Filters NONE Steam 1 RUN: 2ec25941-320a-41c8-92ff-ddf28a2e5569